fUST/lending_fUST_20250302
["ID","MTS","AMOUNT","RATE_DAILY","PERIOD"]
[355097895,1740891070880,-3815.13,0.00027475,2]
[355097896,1740891070889,-2139.17,0.00027475,2]
[355097897,1740891070899,-670.21,0.00027475,2]
[355097898,1740891070909,-500.0,0.00027475,2]
[355097899,1740891070918,-594.37,0.00027475,2]
[355097900,1740891070928,-3134.93,0.00027475,2]
[355097901,1740891070938,-767.93,0.00027475,2]
[355097902,1740891070948,-7112.25,0.00027475,2]
[355097903,1740891070959,-5667.16,0.00027475,2]
[355097904,1740891070968,-3514.94,0.00027475,2]
[355097905,1740891070978,-1154.3,0.00027476,2]
[355097906,1740891070987,-2973.81,0.00027476,2]
[355097907,1740891070997,-914.1,0.00027476,2]
[355097908,1740891071007,-505.03,0.00027476,2]
[355097909,1740891071017,-1772.49,0.00027476,2]
[355097910,1740891071027,-682.1,0.00027476,2]
[355097911,1740891071036,-3795.35,0.00027476,2]
[355097912,1740891071045,-543.9,0.00027476,2]
[355097913,1740891071054,-5730.46,0.00027476,2]
[355097914,1740891071063,-4535.27,0.00027476,2]
[355097915,1740891071073,-1236.92,0.00027476,2]
[355097916,1740891071083,-151.0,0.00027476,7]
[355097917,1740891071092,-1887.83,0.00027476,2]
[355097918,1740891071102,-533.76,0.00027476,2]
[355097919,1740891071112,-713.67,0.00027476,2]
[355097920,1740891071122,-1282.57,0.00027476,2]
[355097921,1740891071132,-753.47,0.00027476,2]
[355097922,1740891071141,-2373.21,0.00027476,2]
[355097923,1740891071151,-6974.83,0.00027476,2]
[355097924,1740891071161,-706.65,0.00027476,2]
[355097925,1740891071171,-904.54,0.00027476,2]
[355097926,1740891071181,-598.51,0.00027476,2]
[355097927,1740891071190,-2161.29,0.00027476,2]
[355097928,1740891071201,-500.0,0.00027479,2]
[355097929,1740891071211,-724.09,0.00027479,2]
[355097930,1740891071220,-730.08,0.00027479,2]
[355097931,1740891071231,-500.0,0.00027479,2]
[355097932,1740891071240,-944.38,0.00027479,2]
[355097933,1740891071250,-570.76,0.00027479,2]
[355097934,1740891071260,-500.0,0.00027479,2]
[355097935,1740891071269,-503.03,0.00027479,2]
[355097936,1740891071280,-995.77,0.00027479,2]
[355097937,1740891071290,-500.0,0.00027479,2]
[355097938,1740891071299,-574.97,0.00027479,2]
[355097939,1740891071309,-921.28,0.00027479,2]
[355097940,1740891071318,-690.0,0.00027479,2]
[355097941,1740891071328,-586.41,0.00027479,2]
[355097942,1740891071338,-1564.87,0.00027479,2]
[355097943,1740891071347,-1548.28,0.00027479,2]
[355097944,1740891071357,-636.65,0.00027479,2]
[355097945,1740891071366,-80347.49,0.00027479,2]
[355097946,1740891071439,-1814.59,0.00027479,2]
[355097947,1740891071450,-983.66,0.00027479,2]
[355097948,1740891071459,-2298.01,0.00027479,2]
[355097949,1740891071470,-568.53,0.00027479,2]
[355097950,1740891071479,-675.58,0.00027479,2]
[355097951,1740891071488,-176.08,0.00027479,2]
[355097952,1740891071499,-1404.94,0.00027479,2]
[355097953,1740891071508,-913.28,0.00027479,2]
[355097954,1740891071518,-1435.15,0.00027479,2]
[355097955,1740891071528,-150.0,0.00027638,2]
[355097956,1740891071537,-150.0,0.00027638,2]
[355097957,1740891071547,-397.0,0.00027638,2]
[355097958,1740891071556,-517.22,0.00027688,2]
[355097959,1740891071566,-500.0,0.00027688,2]
[355097960,1740891071575,-500.0,0.00027688,2]
[355097961,1740891071586,-685.0,0.00027688,2]
[355097962,1740891071595,-1756.49,0.00027688,2]
[355097963,1740891071605,-320.94,0.00027688,2]
[355097964,1740891071614,-500.0,0.00027688,2]
[355097965,1740891071624,-500.0,0.00027688,2]
[355097966,1740891071633,-566.7,0.00027688,2]
[355097967,1740891071643,-2684.09,0.000277,2]
[355097968,1740891071652,-3815.13,0.00027749,2]
[355097969,1740891071671,-2139.17,0.00027749,2]
[355097970,1740891071680,-670.21,0.00027749,2]
[355097971,1740891071690,-500.0,0.00027749,2]
[355097972,1740891071700,-594.37,0.00027749,2]
[355097973,1740891071711,-3134.93,0.00027749,2]
[355097974,1740891071720,-767.93,0.00027749,2]
[355097975,1740891071730,-7112.25,0.00027749,2]
[355097976,1740891071739,-5667.16,0.00027749,2]
[355097977,1740891071750,-3514.94,0.00027749,2]
[355097978,1740891071759,-1154.3,0.0002775,2]
[355097979,1740891071768,-2973.81,0.0002775,2]
[355097980,1740891071779,-914.1,0.0002775,2]
[355097981,1740891071790,-505.03,0.0002775,2]
[355097982,1740891071800,-1772.49,0.0002775,2]
[355097983,1740891071810,-682.1,0.0002775,2]
[355097984,1740891071821,-3795.35,0.0002775,2]
[355097985,1740891071830,-543.9,0.0002775,2]
[355097986,1740891071840,-5730.46,0.0002775,2]
[355097987,1740891071849,-4535.27,0.0002775,2]
[355097988,1740891071859,-1236.92,0.0002775,2]
[355097989,1740891071868,-1887.83,0.0002775,2]
[355097990,1740891071878,-533.76,0.0002775,2]
[355097991,1740891071887,-713.67,0.0002775,2]
[355097992,1740891071898,-1282.57,0.0002775,2]
[355097993,1740891071907,-753.47,0.0002775,2]
[355097994,1740891071916,-2373.21,0.0002775,2]
[355097995,1740891071925,-6974.83,0.0002775,2]
[355097996,1740891071936,-706.65,0.0002775,2]
[355097997,1740891071945,-904.54,0.0002775,2]
[355097998,1740891071955,-598.51,0.0002775,2]
[355097999,1740891071965,-2161.29,0.0002775,2]
[355098000,1740891071975,-1000.0,0.00027752,3]
[355098001,1740891071984,-1000.0,0.00027752,5]
[355098002,1740891071994,-1000.0,0.00027752,5]
[355098003,1740891072004,-1000.0,0.00027752,5]
[355098004,1740891072013,-1000.0,0.00027752,5]
[355098005,1740891072023,-1000.0,0.00027752,5]
[355098006,1740891072032,-1000.0,0.00027752,5]
[355098007,1740891072042,-1000.0,0.00027752,5]
[355098008,1740891072051,-372.61294287,0.00027752,5]
[355098009,1740891072061,-1000.0,0.00027752,5]
[355098010,1740891072070,-1000.0,0.00027752,5]
[355098011,1740891072080,-1000.0,0.00027752,5]
[355098012,1740891072089,-500.0,0.00027753,2]
[355098013,1740891072098,-724.09,0.00027753,2]
[355098014,1740891072107,-730.08,0.00027753,2]
[355098015,1740891072116,-356.92,0.00027753,2]
[355098016,1740891072126,-944.38,0.00027753,2]
[355098017,1740891072135,-570.76,0.00027753,2]
[355098018,1740891072145,-433.22,0.00027753,2]
[355098019,1740891072154,-503.03,0.00027753,2]
[355098020,1740891072163,-995.77,0.00027753,2]
[355098021,1740891072173,-500.0,0.00027753,2]
[355098022,1740891072182,-574.97,0.00027753,2]
[355098023,1740891072192,-921.28,0.00027753,2]
[355098024,1740891072201,-690.0,0.00027753,2]
[355098025,1740891072211,-586.41,0.00027753,2]
[355098026,1740891072220,-1564.87,0.00027753,2]
[355098027,1740891072230,-1548.28,0.00027753,2]
[355098028,1740891072239,-636.65,0.00027753,2]
[355098029,1740891072249,-80347.49,0.00027753,2]
[355098030,1740891072258,-1814.59,0.00027753,2]
[355098031,1740891072268,-983.66,0.00027753,2]
[355098032,1740891072277,-2298.01,0.00027753,2]
[355098033,1740891072287,-568.53,0.00027753,2]
[355098034,1740891072296,-675.58,0.00027753,2]
[355098035,1740891072306,-1404.94,0.00027753,2]
[355098036,1740891072316,-913.28,0.00027753,2]
[355098037,1740891072325,-1435.15,0.00027753,2]
[355098038,1740891072335,-151.0,0.0002786,7]
[355098039,1740891072344,-151.0,0.0002786,7]
[355098040,1740891072354,-346.612221,0.0002786,7]
[355098041,1740891072364,-346.612221,0.0002786,7]
[355098042,1740891072373,-2289.0,0.000279,13]
[355098043,1740891072383,-517.22,0.00027962,2]
[355098044,1740891072392,-500.0,0.00027962,2]
[355098045,1740891072401,-266.53734123,0.00027962,2]
[355098046,1740891072411,-685.0,0.00027962,2]
[355098047,1740891072420,-1756.49,0.00027962,2]
[355098048,1740891072429,-500.0,0.00027962,2]
[355098049,1740891072439,-378.94,0.00027962,2]
[355098050,1740891072448,-566.7,0.00027962,2]
[355098051,1740891072457,-3000.0,0.00027968,7]
[355098052,1740891072467,-160.0,0.00027989,7]
[355098053,1740891072477,-160.0,0.00028,7]
[355098054,1740891072486,-160.0,0.00028,7]
[355098055,1740891072495,-3815.13,0.00028023,2]
[355098056,1740891072505,-2139.17,0.00028023,2]
[355098057,1740891072515,-670.21,0.00028023,2]
[355098058,1740891072524,-413.87,0.00028023,2]
[355098059,1740891072534,-594.37,0.00028023,2]
[355098060,1740891072543,-3134.93,0.00028023,2]
[355098061,1740891072553,-767.93,0.00028023,2]
[355098062,1740891072563,-7112.25,0.00028023,2]
[355098063,1740891072573,-5667.16,0.00028023,2]
[355098064,1740891072583,-1154.3,0.00028024,2]
[355098065,1740891072593,-2973.81,0.00028024,2]
[355098066,1740891072603,-914.1,0.00028024,2]
[355098067,1740891072612,-505.03,0.00028024,2]
[355098068,1740891072622,-1772.49,0.00028024,2]
[355098069,1740891072631,-682.1,0.00028024,2]
[355098070,1740891072640,-3795.35,0.00028024,2]
[355098071,1740891072650,-543.9,0.00028024,2]
[355098072,1740891072660,-5730.46,0.00028024,2]
[355098073,1740891072669,-4535.27,0.00028024,2]
[355098074,1740891072679,-1236.92,0.00028024,2]
[355098075,1740891072688,-1887.83,0.00028024,2]
[355098076,1740891072697,-533.76,0.00028024,2]
[355098077,1740891072708,-713.67,0.00028024,2]
[355098078,1740891072720,-1282.57,0.00028024,2]
[355098079,1740891072729,-753.47,0.00028024,2]
[355098080,1740891072739,-2373.21,0.00028024,2]
[355098081,1740891072748,-6974.83,0.00028024,2]
[355098082,1740891072759,-706.65,0.00028024,2]
[355098083,1740891072769,-904.54,0.00028024,2]
[355098084,1740891072779,-598.51,0.00028024,2]
[355098085,1740891072790,-2161.29,0.00028024,2]
[355098086,1740891072799,-372.61,0.00028027,2]
[355098087,1740891072809,-724.09,0.00028027,2]
[355098088,1740891072818,-730.08,0.00028027,2]
[355098089,1740891072828,-944.38,0.00028027,2]
[355098090,1740891072837,-570.76,0.00028027,2]
[355098091,1740891072847,-503.03,0.00028027,2]
[355098092,1740891072857,-995.77,0.00028027,2]
[355098093,1740891072867,-475.5,0.00028027,2]
[355098094,1740891072876,-574.97,0.00028027,2]
[355098095,1740891072887,-921.28,0.00028027,2]
[355098096,1740891072897,-690.0,0.00028027,2]
[355098097,1740891072907,-586.41,0.00028027,2]
[355098098,1740891072917,-1564.87,0.00028027,2]
[355098099,1740891072928,-1548.28,0.00028027,2]
[355098100,1740891072938,-636.65,0.00028027,2]
[355098101,1740891072948,-80347.49,0.00028027,2]
[355098102,1740891072959,-1814.59,0.00028027,2]
[355098103,1740891072969,-983.66,0.00028027,2]
[355098104,1740891072978,-2298.01,0.00028027,2]
[355098105,1740891072987,-568.53,0.00028027,2]
[355098106,1740891072998,-675.58,0.00028027,2]
[355098107,1740891073008,-1404.94,0.00028027,2]
[355098108,1740891073019,-913.28,0.00028027,2]
[355098109,1740891073030,-1435.15,0.00028027,2]
[355098110,1740891073040,-2200.0,0.00028112,2]
[355098111,1740891073051,-500.0,0.00028112,2]
[355098112,1740891073062,-151.0,0.00028135,7]
[355098113,1740891073072,-204.04207536,0.0002815,5]
[355098114,1740891073082,-726.0,0.00028223,2]
[355098115,1740891073092,-517.22,0.00028236,2]
[355098116,1740891073102,-500.0,0.00028236,2]
[355098117,1740891073112,-685.0,0.00028236,2]
[355098118,1740891073122,-1756.49,0.00028236,2]
[355098119,1740891073132,-500.0,0.00028236,2]
[355098120,1740891073142,-566.7,0.00028236,2]
[355098121,1740891073153,-3815.28,0.00028296,2]
[355098122,1740891073163,-2139.23,0.00028296,2]
[355098123,1740891073178,-670.25,0.00028296,2]
[355098124,1740891073187,-594.45,0.00028296,2]
[355098125,1740891073197,-3135.06,0.00028296,2]
[355098126,1740891073207,-767.95,0.00028296,2]
[355098127,1740891073217,-7112.29,0.00028296,2]
[355098128,1740891073227,-5667.3,0.00028296,2]
[355098129,1740891073236,-1154.38,0.00028298,2]
[355098130,1740891073247,-2973.9,0.00028298,2]
[355098131,1740891073257,-914.18,0.00028298,2]
[355098132,1740891073267,-505.25,0.00028298,2]
[355098133,1740891073277,-1772.52,0.00028298,2]
[355098134,1740891073286,-682.12,0.00028298,2]
[355098135,1740891073295,-3795.35924837,0.00028298,2]
[355098136,1740891073305,-544.11681321,0.00028298,2]
[355098137,1740891073316,-5730.68,0.00028298,2]
[355098138,1740891073327,-4535.33,0.00028298,2]
[355098139,1740891073337,-1237.12,0.00028298,2]
[355098140,1740891073347,-1887.83650609,0.00028298,2]
[355098141,1740891073357,-533.85495065,0.00028298,2]
[355098142,1740891073367,-713.9,0.00028298,2]
[355098143,1740891073377,-1282.69,0.00028298,2]
[355098144,1740891073386,-753.50386302,0.00028298,2]
[355098145,1740891073395,-2373.37111604,0.00028298,2]
[355098146,1740891073405,-6975.05107743,0.00028298,2]
[355098147,1740891073415,-706.78,0.00028298,2]
[355098148,1740891073425,-904.6,0.00028298,2]
[355098149,1740891073436,-598.71,0.00028298,2]
[355098150,1740891073446,-2161.51,0.00028298,2]
[355098151,1740891073456,-724.19,0.00028301,2]
[355098152,1740891073467,-730.27,0.00028301,2]
[355098153,1740891073478,-944.55901271,0.00028301,2]
[355098154,1740891073489,-570.94,0.00028301,2]
[355098155,1740891073499,-503.19,0.00028301,2]
[355098156,1740891073510,-995.96,0.00028301,2]
[355098157,1740891073520,-575.03,0.00028301,2]
[355098158,1740891073530,-921.38,0.00028301,2]
[355098159,1740891073540,-690.2139437,0.00028301,2]
[355098160,1740891073551,-586.53851491,0.00028301,2]
[355098161,1740891073561,-1565.02,0.00028301,2]
[355098162,1740891073572,-1548.3321953,0.00028301,2]
[355098163,1740891073582,-636.84,0.00028301,2]
[355098164,1740891073592,-80347.5662068,0.00028301,2]
[355098165,1740891073603,-1814.61,0.00028301,2]
[355098166,1740891073614,-983.68,0.00028301,2]
[355098167,1740891073624,-2298.22,0.00028301,2]
[355098168,1740891073634,-568.54,0.00028301,2]
[355098169,1740891073645,-675.65,0.00028301,2]
[355098170,1740891073656,-1405.06,0.00028301,2]
[355098171,1740891073667,-913.39,0.00028301,2]
[355098172,1740891073676,-1435.25279728,0.00028301,2]
[355098173,1740891073686,-179.44372445,0.00028454,2]
[355098174,1740891073697,-167.90937271,0.00028466,2]
[355098175,1740891073710,-189.52405272,0.00028466,2]
[355098176,1740891073721,-517.22,0.0002851,2]
[355098177,1740891073731,-500.0,0.0002851,2]
[355098178,1740891073742,-685.0,0.0002851,2]
[355098179,1740891073754,-1756.49,0.0002851,2]
[355098180,1740891073764,-500.0,0.0002851,2]
[355098181,1740891073774,-566.7,0.0002851,2]
[355098182,1740891073784,-160.0,0.00028602,8]
[355098183,1740891073795,-151.0,0.00028683,7]
[355098184,1740891073805,-157.363292,0.00028683,7]
[355098185,1740891073815,-151.0,0.00028683,7]
[355098186,1740891073825,-157.363292,0.00028683,7]
[355098187,1740891073835,-151.0,0.00028683,7]
[355098188,1740891073845,-517.22,0.00028784,2]
[355098189,1740891073855,-500.0,0.00028784,2]
[355098190,1740891073865,-685.0,0.00028784,2]
[355098191,1740891073875,-1756.49,0.00028784,2]
[355098192,1740891073885,-407.66,0.00028784,2]
[355098193,1740891073895,-566.7,0.00028784,2]
[355098194,1740891073905,-3000.0,0.0002879,7]
[355098195,1740891073915,-538.74336501,0.00028852,5]
[355098196,1740891073925,-585.01606591,0.00028852,5]
[355098197,1740891073935,-1000.0,0.00028852,5]
[355098198,1740891073945,-1000.0,0.00028852,5]
[355098199,1740891073955,-1000.0,0.00028852,5]
[355098200,1740891073967,-1000.0,0.00028852,5]
[355098201,1740891073978,-1000.0,0.00028852,5]
[355098202,1740891073988,-1000.0,0.00028852,5]
[355098203,1740891073999,-840.35798985,0.00028852,5]
[355098204,1740891074010,-250.20419285,0.00028852,5]
[355098205,1740891074020,-1000.0,0.00028852,5]
[355098206,1740891074031,-1000.0,0.00028852,5]
[355098207,1740891074041,-1000.0,0.00028852,5]
[355098208,1740891074051,-1000.0,0.00028852,5]
[355098209,1740891074062,-838.29515779,0.00028852,5]
[355098210,1740891074072,-1000.0,0.00028852,5]
[355098211,1740891074083,-635.48681888,0.00028852,5]
[355098212,1740891074093,-1000.0,0.00028852,5]
[355098213,1740891074104,-1000.0,0.00028852,5]
[355098214,1740891074114,-1000.0,0.00028852,5]
[355098215,1740891074124,-268.46671735,0.00028852,5]
[355098216,1740891074135,-1000.0,0.00028852,5]
[355098217,1740891074145,-590.1295857,0.00028918,2]
[355098218,1740891074155,-517.22,0.00029058,2]
[355098219,1740891074168,-267.0,0.00029058,2]
[355098220,1740891074182,-685.0,0.00029058,2]
[355098221,1740891074192,-1756.49,0.00029058,2]
[355098222,1740891074204,-566.7,0.00029058,2]
[355098223,1740891074215,-160.0,0.00029214,9]
[355098224,1740891074225,-517.22,0.00029332,2]
[355098225,1740891074237,-685.0,0.00029332,2]
[355098226,1740891074247,-1756.49,0.00029332,2]
[355098227,1740891074258,-566.7,0.00029332,2]
[355098228,1740891074268,-346.612221,0.00029399,7]
[355098229,1740891074279,-346.612221,0.00029399,7]
[355098230,1740891074290,-291.36,0.000294,7]
[355098231,1740891074301,-2289.0,0.000294,14]
[355098232,1740891074312,-204.04207536,0.000294,5]
[355098233,1740891074323,-1000.0,0.0002947,5]
[355098234,1740891074334,-517.25,0.00029606,2]
[355098235,1740891074345,-685.17,0.00029606,2]
[355098236,1740891074356,-1756.52,0.00029606,2]
[355098237,1740891074368,-566.81,0.00029606,2]
[355098238,1740891074379,-3000.0,0.00029612,7]
[355098239,1740891074391,-160.0,0.00029826,10]
[355098240,1740891074402,-191.642167,0.00029979,7]
[355098241,1740891074412,-228.0,0.0003,2]
[355098242,1740891074424,-19629.85965445,0.0003,7]
[355098243,1740891074435,-2000.0,0.0003,4]
[355098244,1740891074447,-173.639,0.0003,2]
[355098245,1740891074459,-262.0,0.0003,120]
[355098246,1740891074468,-1000.0,0.00030136,120]
[355098247,1740891074479,-500.0,0.00030137,5]
[355098248,1740891074489,-1000.0,0.00030164,120]
[355098249,1740891074498,-1000.0,0.00030191,120]
[355098250,1740891074508,-380.81383267,0.00030219,120]
[355098251,1740891074520,-160.0,0.00030439,11]
[355098252,1740891074530,-5889.33243419,0.00030486,2]
[355098253,1740891074539,-150.0,0.00030638,2]
[355098254,1740891074550,-150.0,0.00030638,2]
[355098255,1740891074560,-397.0,0.00030638,2]
[355098256,1740891074570,-204.04207536,0.0003065,5]
[355098257,1740891074580,-1000.0,0.00030685,5]
[355098258,1740891074591,-1165.88,0.00030822,30]
[355098259,1740891074602,-2289.0,0.000309,15]
[355098260,1740891074613,-10000.0,0.00031,7]
[355098261,1740891074623,-160.0,0.00031,7]
[355098262,1740891074635,-160.0,0.00031,7]
[355098263,1740891074646,-155.378755,0.00031015,15]
[355098264,1740891074657,-160.0,0.00031051,12]
[355098265,1740891074668,-1500.0,0.00031233,5]
[355098266,1740891074678,-3000.0,0.00031256,7]
[355098267,1740891074689,-590.1295857,0.0003126,2]
[355098268,1740891074701,-160.0,0.00031664,13]
[355098269,1740891074714,-22763.45625532,0.0003168,2]
[355098270,1740891074726,-2000.0,0.00031781,5]
[355098271,1740891074737,-204.04207536,0.000319,6]
[355098272,1740891074748,-10000.0,0.00032,8]
[355098273,1740891074759,-867093.3621,0.00032,2]
[355098274,1740891074770,-151.0,0.00032,7]
[355098275,1740891074780,-151.0,0.00032,7]
[355098276,1740891074794,-157.363292,0.00032,7]
[355098277,1740891074805,-151.0,0.00032,7]
[355098278,1740891074816,-157.363292,0.00032,7]
[355098279,1740891074826,-151.0,0.00032,7]
[355098280,1740891074837,-346.612221,0.00032,7]
[355098281,1740891074847,-346.612221,0.00032,7]
[355098282,1740891074858,-151.0,0.00032,7]
[355098283,1740891074869,-250.0,0.00032,120]
[355098284,1740891074881,-155.378755,0.00032229,2]
[355098285,1740891074892,-160.0,0.00032276,14]
[355098286,1740891074903,-847.57792602,0.00032329,5]
[355098287,1740891075932,-500.0,0.00021996,2]
[355098288,1740891075942,-500.0,0.00021996,2]
[355098289,1740891075951,-500.0,0.00021996,2]
[355098290,1740891075961,-206.82472665,0.00021999,2]
[355098291,1740891075972,-500.0,0.0002227,2]
[355098292,1740891075981,-359.96817815,0.0002227,2]
[355098293,1740891075997,-251.44687953,0.0002227,2]
[355098294,1740891076006,-500.0,0.0002227,2]
[355098295,1740891076016,-500.0,0.00022544,2]
[355098296,1740891076025,-500.0,0.00022544,2]
[355098297,1740891076039,-500.0,0.00022818,2]
[355098298,1740891076048,-500.0,0.00023092,2]
[355098299,1740891076058,-500.0,0.00023366,2]
[355098300,1740891076068,-500.0,0.0002364,2]
[355098301,1740891076077,-500.0,0.00023914,2]
[355098302,1740891076086,-278.4,0.00024188,2]
[355098303,1740891076096,-3514.94,0.00028023,2]
[355098304,1740891076106,-3515.02,0.00028296,2]
[355098305,1740891076116,-1652.42207398,0.00032329,5]
[355098306,1740891076125,-2289.0,0.000324,16]
[355098307,1740891076135,-1005.53265178,0.00032431,5]
[355098308,1740891076144,-2777.335,0.000325,20]
[355098309,1740891076154,-200.0,0.0003259,35]
[355098310,1740891076163,-194.43810939,0.00032876,2]
[355098311,1740891076172,-500.0,0.00032877,2]
[355098312,1740891076181,-500.0,0.00032877,2]
[355098313,1740891076191,-668.517986,0.00032877,2]
[355098314,1740891076200,-192.69406161,0.00032877,2]
[355098315,1740891076209,-151.0,0.00032877,14]
[355098316,1740891076219,-151.0,0.00032877,14]
[355098317,1740891076228,-151.0,0.00032877,14]
[355098318,1740891076238,-151.0,0.00032877,14]
[355098319,1740891076247,-151.0,0.00032877,14]
[355098320,1740891076257,-151.0,0.00032877,14]
[355098321,1740891076266,-3000.0,0.00032877,5]
[355098322,1740891076276,-155.378755,0.00032877,7]
[355098323,1740891076287,-160.0,0.00032889,15]
[355098324,1740891076297,-160.0,0.00032889,5]
[355098325,1740891076306,-3000.0,0.000329,60]
[355098326,1740891076316,-17218.54679413,0.000329,30]
[355098327,1740891076328,-55946.25833004,0.000329,30]
[355098328,1740891076337,-5171.67680449,0.000329,30]
[355098329,1740891076371,-8609.72319551,0.000329,30]
[355098330,1740891076380,-25859.27,0.000329,30]
[355098331,1740891076391,-3118.33,0.000329,30]
[355098332,1740891076400,-21137.41,0.000329,30]
[355098333,1740891076410,-2000.0,0.000329,9]
[355098334,1740891076420,-183.39704,0.000329,2]
[355098335,1740891076429,-4790.48473571,0.00033,2]
[355098336,1740891076441,-209.51526429,0.00033,2]
[355098337,1740891076450,-7953.39136834,0.00033,8]
[355098338,1740891182279,160.0,0.0002,3]
[355098339,1740891182726,160.0,0.0002,3]
[355098340,1740891183314,160.0,0.0002,7]
[355098341,1740891245792,6500.0,0.00020996,30]
[355098346,1740891410705,10000.0,0.00021,30]
[355098347,1740891419344,10000.0,0.00021,30]
[355098348,1740891426350,10000.0,0.0002,10]
[355098349,1740891432499,10000.0,0.00021,30]
[355098350,1740891438866,10000.0,0.0002,10]
[355098351,1740891447042,10000.0,0.00021,30]
[355098352,1740891452488,10000.0,0.0002,10]
[355098353,1740891461104,10000.0,0.00021,30]
[355098354,1740891469891,10000.0,0.0002,10]
[355098355,1740891475988,10000.0,0.00021,30]
[355098356,1740891483344,10000.0,0.0002,10]
[355098357,1740891488373,10000.0,0.00021,30]
[355098358,1740891495031,10000.0,0.00021,30]
[355098359,1740891500876,10000.0,0.00021,30]
[355098360,1740891508055,10000.0,0.0002,10]
[355098361,1740891514382,10000.0,0.00021,30]
[355098362,1740891523618,9108.0,0.0002,10]
[355098363,1740891932146,-175.8469198,0.00020556,2]
[355098364,1740891932167,-166.0,0.00020734,2]
[355098365,1740891932189,-360.7300569,0.00020734,2]
[355098366,1740891932210,-376.41824982,0.00020734,2]
[355098367,1740891958095,-123.58175018,0.00020734,2]
[355098368,1740891958116,-245.90363132,0.00020734,2]
[355098369,1740892033085,-611.1755036,0.000189,2]
[355098370,1740892033110,-250.0,0.00020276,2]
[355098371,1740892033133,-195.2306018,0.0002044,2]
[355098372,1740892033156,-254.09636868,0.00020734,2]
[355098373,1740892033179,-1235.8983017,0.00020893,2]
[355098374,1740892033203,-157.73571,0.00020941,2]
[355098375,1740892033226,-160.34,0.00020987,2]
[355098376,1740892033249,-300.0,0.00020996,2]
[355098377,1740892033272,-24900.0,0.00020997,2]
[355098378,1740892033294,-293.9163363,0.00021159,2]
[355098379,1740892033316,-210.51250746,0.00021795,2]
[355098380,1740892033339,-1396.31856928,0.00021795,2]
[355098381,1740892033363,-913.54156581,0.00021817,2]
[355098382,1740892033385,-1180.09869214,0.00021899,2]
[355098383,1740892033408,-500.0,0.00021917,2]
[355098384,1740892033431,-500.0,0.00021917,2]
[355098385,1740892033455,-500.0,0.00021917,2]
[355098386,1740892033478,-500.0,0.00021917,2]
[355098387,1740892033500,-615.95050168,0.00021917,2]
[355098388,1740892033522,-500.0,0.00021973,2]
[355098389,1740892033544,-500.0,0.00021973,2]
[355098390,1740892033567,-500.0,0.00021973,2]
[355098391,1740892033590,-500.0,0.00021973,2]
[355098392,1740892033613,-500.0,0.00021973,2]
[355098393,1740892033635,-500.0,0.00021973,2]
[355098394,1740892033657,-500.0,0.00021973,2]
[355098395,1740892033680,-502.04676259,0.00021973,2]
[355098396,1740892033702,-500.0,0.00021973,2]
[355098397,1740892033724,-174.7,0.00021979,3]
[355098398,1740892033746,-498.17,0.0002198,3]